bitfinex/quotes_SOLUSD_20220226
["timestamp","ask_amount","ask_price","bid_price","bid_amount"]
[1645885540247,22.9452,90.978,90.895,110.0]
[1645885540449,22.9452,90.978,90.901,110.0]
[1645885540650,22.9452,90.978,90.903,110.0]
[1645885540849,2.158,91.014,90.905,110.0]
[1645885541073,48.3373,91.047,90.921,110.0]
[1645885541272,48.3373,91.047,90.931,110.0]
[1645885541475,5.91,91.11,90.93,15.85]
[1645885541476,22.39409634,91.075,90.933,110.0]
[1645885541675,2.036,91.074,90.962,3.01250929]
[1645885541873,2.036,91.074,90.971,110.0]
[1645885542071,1.995,91.089,90.973,110.0]
[1645885542272,1.995,91.089,90.974,4.394]
[1645885542473,1.995,91.089,90.973,4.394]
[1645885542672,1.995,91.089,90.974,2.67851066]
[1645885542873,1.995,91.089,90.976,44.60273905]
[1645885543073,0.92805554,91.089,90.99,15.85]
[1645885543276,1.85611108,91.089,90.991,7.37323685]
[1645885543476,1.85611108,91.089,91.01,16.4832]
[1645885543674,1.85611108,91.089,91.011,2.48733858]
[1645885544075,52.72852644,91.088,91.012,42.81258757]
[1645885544276,52.72852644,91.088,91.013,2.52100986]
[1645885544673,54.58463752,91.088,91.013,2.52100986]
[1645885548078,1.85611108,91.088,91.013,2.52100986]
[1645885548282,16.4841,91.09,91.02,16.4815]
[1645885548482,23.6427,91.099,91.021,2.59121245]
[1645885549384,58.59747525,91.098,91.021,2.59121245]
[1645885550284,16.4832,91.09,91.013,2.30952925]
[1645885550682,22.39409634,91.089,91.013,2.30952925]
[1645885550883,2.33,91.088,91.013,2.30952925]
[1645885551285,16.4876,91.08,91.013,2.30952925]
[1645885551489,0.33719813,91.079,91.013,2.30952925]
[1645885552086,1.81873367,91.078,91.013,2.30952925]
[1645885552486,16.4879,91.07,91.013,2.30952925]
[1645885557792,24.8848,91.088,91.013,2.30952925]
[1645885558391,24.8848,91.088,91.013,8.72952925]
[1645885558894,24.8848,91.088,91.014,4.393]
[1645885559493,24.8848,91.088,91.02,16.4819]
[1645885559693,24.8848,91.088,91.021,2.38703962]
[1645885564805,22.39409634,91.087,91.013,6.84473751]
[1645885564999,6.38289599,91.086,91.013,6.84473751]
[1645885565601,16.4851,91.08,91.013,6.84473751]
[1645885566300,1.81873367,91.079,91.013,6.84473751]
[1645885566500,1.81873367,91.079,90.981,25.28811034]
[1645885566501,68.257,91.078,90.981,25.28811034]
[1645885566703,65.9,91.076,90.982,2.85443488]
[1645885567102,16.49,91.07,90.982,2.85443488]
[1645885567323,68.266,91.069,90.982,2.85443488]
[1645885567506,65.9,91.067,90.983,45.51985535]
[1645885567705,2.374,91.066,90.984,2.43248555]
[1645885568308,1.81873367,91.065,90.984,2.43248555]
[1645885568508,16.4934,91.06,90.984,2.43248555]
[1645885568708,67.4422951,91.059,90.984,2.43248555]
[1645885568908,175.9,91.053,90.952,2.62592582]
[1645885569109,65.9,91.051,90.952,2.62592582]
[1645885569309,65.9,91.047,90.952,2.62592582]
[1645885569509,175.9,91.043,90.952,2.62592582]
[1645885569708,6.38289599,91.042,90.953,53.06516959]
[1645885569914,6.38289599,91.042,90.954,2.93160538]
[1645885570109,22.39409634,91.041,90.954,2.93160538]
[1645885570309,24.21283001,91.041,90.954,2.93160538]
[1645885570509,22.39409634,91.041,90.954,2.93160538]
[1645885570710,1.81873367,91.04,90.954,2.93160538]
[1645885571409,6.38289599,91.042,90.954,2.93160538]
[1645885572516,6.38289599,91.042,90.96,16.4926]
[1645885572712,6.38289599,91.042,90.961,2.75083582]
[1645885573110,8.23900707,91.042,90.961,2.75083582]
[1645885574612,16.4956,91.05,90.961,112.75083582]
[1645885574834,16.4956,91.05,90.961,110.0]
[1645885575038,16.4956,91.05,90.962,2.70270915]
[1645885575331,16.4956,91.05,90.963,22.8465]
[1645885575538,16.4956,91.05,90.964,2.56196812]
[1645885575735,43.20745377,91.049,90.964,2.56196812]
[1645885575936,16.4956,91.05,90.964,2.56196812]
[1645885576134,16.4956,91.05,90.97,16.4907]
[1645885576334,16.4956,91.05,90.971,2.50617988]
[1645885577036,51.60001978,91.049,90.972,34.35015703]
[1645885577234,51.60001978,91.049,90.973,2.71457115]
[1645885580338,16.4956,91.05,90.973,2.71457115]
[1645885580537,16.4956,91.05,90.98,16.4888]
[1645885580740,16.4956,91.05,90.981,3.06657134]
[1645885581342,47.20347142,91.049,90.973,2.95664935]
[1645885583544,16.4956,91.05,90.973,2.95664935]
[1645885583745,16.4956,91.05,90.98,16.4888]
[1645885583944,16.4956,91.05,90.981,2.72210601]
[1645885584444,71.41781644,91.05,90.981,2.72210601]
[1645885585750,16.4956,91.05,90.981,2.72210601]
[1645885586047,24.5846,91.052,90.99,16.4871]
[1645885586247,24.5846,91.052,90.991,2.82737798]
[1645885586848,24.5846,91.052,90.992,53.06516959]
[1645885587046,24.5846,91.052,90.993,3.02108969]
[1645885588053,52.7992914,91.063,90.993,3.02108969]
[1645885589551,23.8048,91.069,90.993,3.02108969]
[1645885590753,69.04670576,91.069,90.993,3.02108969]
[1645885594059,1.85611108,91.078,91.001,110.0]
[1645885594257,22.39409634,91.103,91.002,2.70458801]
[1645885594458,22.39409634,91.103,91.005,2.528066]
[1645885594661,46.7981,91.105,91.005,2.528066]
[1645885595059,43.52136881,91.104,91.007,110.0]
[1645885595257,43.52136881,91.104,91.021,110.0]
[1645885595258,16.4828,91.1,91.021,110.0]
[1645885595461,16.4828,91.1,91.022,49.77020551]
[1645885595658,16.4828,91.1,91.023,2.62377835]
[1645885597559,16.4828,91.1,91.023,112.62377835]
[1645885597763,16.4828,91.1,91.031,110.0]
[1645885597965,16.4828,91.1,91.032,2.25172388]
[1645885598560,1.81873367,91.102,91.032,2.25172388]
[1645885599562,1.81873367,91.102,91.041,110.0]
[1645885599764,1.81873367,91.102,91.042,2.80496534]
[1645885600569,44.79054546,91.101,91.043,40.05797456]
[1645885600764,44.79054546,91.101,91.044,3.03702805]
[1645885601364,1.81873367,91.118,91.044,3.03702805]
[1645885602265,58.33936718,91.117,91.044,3.03702805]
[1645885602866,1.81873367,91.116,91.044,3.03702805]
[1645885603067,16.4794,91.11,91.044,3.03702805]
[1645885608269,24.6326,91.115,91.044,113.03702805]
[1645885608470,24.6326,91.115,91.051,113.016448]
[1645885608675,24.6326,91.115,91.052,2.4408111]
[1645885612783,47.02669634,91.115,91.044,2.56858796]
[1645885612984,4.13873367,91.114,91.044,2.56858796]
[1645885613384,22.39409634,91.113,91.044,2.56858796]
[1645885613587,2.319,91.112,91.044,2.56858796]
[1645885613988,22.39409634,91.111,91.044,2.56858796]
[1645885614189,24.21283001,91.111,91.044,2.56858796]
[1645885614388,22.39409634,91.111,91.044,2.56858796]
[1645885614588,18.29813367,91.11,91.044,2.56858796]
[1645885614988,16.4794,91.11,91.044,2.56858796]
[1645885615188,1.81873367,91.109,91.044,2.56858796]
[1645885615587,15.21372736,91.099,91.044,2.56858796]
[1645885616193,1.81873367,91.098,91.044,2.56858796]
[1645885617497,16.483,91.09,91.044,2.56858796]
[1645885619600,15.21372736,91.099,91.044,2.56858796]
[1645885619801,54.92,91.154,91.044,112.56858796]
[1645885620002,113.0,91.226,91.044,112.56858796]
[1645885620003,47.1474,91.194,91.051,110.0]
[1645885620301,47.1474,91.194,91.061,110.0]
[1645885620502,2.315,91.193,91.063,110.0]
[1645885620701,42.07783005,91.192,91.081,110.0]
[1645885620904,42.07783005,91.192,91.091,110.0]
[1645885621102,42.07783005,91.192,91.092,2.6974621]
[1645885621305,42.07783005,91.192,91.093,23.1956]
[1645885621502,42.07783005,91.192,91.094,3.114705]
[1645885622204,2.322,91.191,91.094,3.114705]
[1645885622603,16.466,91.19,91.111,46.39704398]
[1645885622803,16.466,91.19,91.112,2.74253222]
[1645885626712,16.466,91.19,91.081,29.51087213]
[1645885626713,179.82810284,91.189,91.094,3.05920966]
[1645885627010,1.71513297,91.168,91.041,2.91242602]
[1645885627211,1.8733138,91.165,91.041,2.91242602]
[1645885627410,2.334,91.164,91.041,2.91242602]
[1645885627610,65.9,91.159,91.043,3.061692]
[1645885627812,68.235,91.159,91.043,3.061692]
[1645885628010,42.07783005,91.139,91.051,2.78564895]
[1645885628211,24.1173,91.138,91.043,2.97735554]
[1645885628414,25.04535554,91.138,91.043,2.97735554]
[1645885629609,16.4758,91.13,91.061,32.3901237]
[1645885629811,16.4758,91.13,91.062,2.47208259]
[1645885647359,24.1173,91.138,91.062,2.47208259]
[1645885648561,24.1173,91.138,91.071,3.10356632]
[1645885649059,16.4734,91.15,91.071,3.10356632]
[1645885649262,24.6121,91.159,91.071,3.10356632]
[1645885649659,24.6121,91.159,91.072,2.74678921]
[1645885650058,24.6121,91.159,91.08,126.4709]
[1645885650259,23.8003,91.163,91.09,15.85]
[1645885650460,23.8003,91.163,91.091,2.92289056]
[1645885651064,23.8003,91.163,91.1,126.4675]
[1645885651260,23.7082,91.178,91.101,3.10967236]
[1645885651967,79.07592401,91.178,91.103,2.76990418]
[1645885652565,79.07592401,91.178,91.111,2.34398106]
[1645885653768,79.07592401,91.178,91.104,2.84668758]
[1645885655769,65.9,91.177,91.104,2.84668758]
[1645885655970,2.314,91.176,91.104,2.84668758]
[1645885656177,23.95362123,91.176,91.104,2.84668758]
[1645885656368,21.63962123,91.176,91.104,2.84668758]
[1645885656569,1.81873367,91.175,91.104,2.84668758]
[1645885656772,55.36772401,91.178,91.104,2.84668758]
[1645885657671,24.2534,91.193,91.104,2.84668758]
[1645885657872,24.2534,91.193,91.106,2.6689022]
[1645885658075,24.2534,91.193,91.121,2.67066794]
[1645885658872,50.05976434,91.192,91.123,2.41762692]
[1645885659471,50.05976434,91.192,91.13,16.4623]
[1645885659673,50.05976434,91.192,91.131,2.53631118]
[1645885661093,24.2534,91.193,91.131,2.53631118]
[1645885661273,24.2534,91.193,91.14,16.4603]
[1645885661673,24.2534,91.193,91.141,2.60552398]
[1645885662272,24.2534,91.193,91.143,2.38753684]
[1645885663074,2.375,91.223,91.143,2.38753684]
[1645885663273,25.771,91.223,91.143,2.38753684]
[1645885663774,44.1506005,91.222,91.143,2.38753684]
[1645885664475,16.4616,91.21,91.143,2.38753684]
[1645885665777,16.4634,91.2,91.143,2.38753684]
[1645885667077,14.78407288,91.208,91.143,2.38753684]
[1645885671785,16.463,91.2,91.143,2.38753684]
[1645885672388,24.003,91.207,91.143,2.38753684]
[1645885675592,24.003,91.207,91.142,36.05854242]
[1645885676511,16.4633,91.2,91.142,36.05854242]
[1645885676912,1.70737886,91.199,91.11,15.85]
[1645885677211,17.06843906,91.198,91.108,2.27207896]
[1645885677412,1.36606168,91.196,91.092,4.388]
[1645885677612,2.166,91.195,91.082,2.75728081]
[1645885677812,16.4675,91.19,91.083,56.59650675]
[1645885678013,2.114,91.189,91.085,2.79826748]
[1645885678217,21.63962123,91.189,91.086,4.388]
[1645885678415,21.63962123,91.189,91.087,22.5264]
[1645885678612,16.4675,91.19,91.087,22.5264]
[1645885678613,23.49573231,91.188,91.089,110.0]
[1645885679012,21.63962123,91.188,91.09,7.2212933]
[1645885679415,1.85611108,91.187,91.09,7.2212933]
[1645885679711,1.85611108,91.187,91.091,2.51524979]
[1645885680315,21.63962123,91.186,91.092,23.2585]
[1645885680514,21.63962123,91.186,91.093,2.59323844]
[1645885680720,175.9,91.184,91.092,23.2585]
[1645885680913,1.45485284,91.183,91.092,23.2585]
[1645885681115,175.9,91.182,91.092,23.2585]
[1645885681315,1.79016859,91.181,91.083,56.59650675]
[1645885681516,175.9,91.18,91.083,56.59650675]
[1645885681716,65.9,91.178,91.083,56.59650675]
[1645885681916,1.57772042,91.177,91.083,56.59650675]
[1645885682213,25.03607532,91.177,91.083,56.59650675]
[1645885682417,68.223,91.176,91.083,56.59650675]
[1645885682614,1.45549064,91.175,91.083,56.59650675]
[1645885682814,2.323,91.174,91.083,56.59650675]
[1645885683014,69.99961386,91.174,91.083,56.59650675]
[1645885683216,1.43223357,91.173,91.083,56.59650675]
[1645885683414,2.323,91.172,91.083,56.59650675]
[1645885683615,4.14173367,91.172,91.083,56.59650675]
[1645885683815,1.43223357,91.173,91.083,56.59650675]
[1645885684216,16.4725,91.15,91.083,56.59650675]
[1645885684517,44.1506005,91.149,91.083,56.59650675]
[1645885686521,16.4739,91.14,91.083,56.59650675]
[1645885689923,23.9721,91.148,91.083,56.59650675]
[1645885690123,16.4718,91.16,91.084,2.3874176]
[1645885690323,23.0096,91.17,91.085,2.79376962]
[1645885690522,23.0096,91.17,91.086,2.7149358]
[1645885690723,23.0096,91.17,91.09,15.85]
[1645885690926,48.72064051,91.169,91.091,2.8425298]
[1645885691222,23.0096,91.17,91.091,2.8425298]
[1645885691625,23.3426,91.183,91.092,4.389]
[1645885691825,23.3426,91.183,91.093,110.0]
[1645885692023,23.3426,91.183,91.095,110.0]
[1645885692224,23.3426,91.183,91.096,2.85928154]
[1645885692424,42.61368466,91.182,91.1,15.85]
[1645885692625,42.61368466,91.182,91.101,4.388]
[1645885692825,42.61368466,91.182,91.101,7.1227309]
[1645885693627,42.61368466,91.182,91.111,33.38540837]
[1645885693824,42.61368466,91.182,91.112,6.96675888]
[1645885694124,42.61368466,91.182,91.112,2.57875888]
[1645885694932,64.51919923,91.182,91.112,2.57875888]
[1645885695427,175.9,91.18,91.111,30.81881987]
[1645885695626,2.323,91.179,91.111,30.81881987]
[1645885695826,65.9,91.178,91.111,30.81881987]
[1645885696026,1.51359586,91.177,91.111,30.81881987]
[1645885696427,1.35715898,91.175,91.111,30.81881987]
[1645885696628,1.35715898,91.175,91.071,7.22169901]
[1645885696827,89.8133,91.174,91.072,24.1127]
[1645885697027,4.13818073,91.173,91.073,2.75360491]
[1645885697327,26.0436953,91.173,91.073,2.75360491]
[1645885697527,175.9,91.171,91.074,52.71728112]
[1645885697731,126.4746,91.15,91.074,52.71728112]
[1645885697931,16.32098872,91.148,91.074,52.71728112]
[1645885699130,16.4761,91.13,91.074,52.71728112]
[1645885699730,16.32098872,91.148,91.075,2.60283644]
[1645885704337,23.6546,91.149,91.075,2.60283644]
[1645885708245,16.47,91.17,91.081,110.0]
[1645885708445,23.9133,91.174,91.091,110.0]
[1645885708648,23.9133,91.174,91.093,110.0]
[1645885708845,23.9133,91.174,91.094,2.87376128]
[1645885709245,23.9133,91.174,91.095,110.0]
[1645885709445,23.9133,91.174,91.11,16.4645]
[1645885709645,22.7995,91.179,91.111,37.73346592]
[1645885709856,22.7995,91.179,91.112,3.11555696]
[1645885713464,26.0579,91.198,91.12,16.4638]
[1645885713665,26.0579,91.198,91.121,2.27866142]
[1645885714464,23.7349,91.198,91.121,2.27866142]
[1645885714664,23.7349,91.198,91.121,112.27866142]
[1645885714963,22.6308,91.205,91.124,2.33959625]
[1645885715163,22.6308,91.205,91.122,2.74678921]
[1645885715164,22.6308,91.205,91.127,2.31781084]
[1645885715364,22.6308,91.205,91.14,15.85]
[1645885715565,22.6308,91.205,91.141,46.23287643]
[1645885715766,22.6308,91.205,91.142,2.69932044]
[1645885724284,53.43942658,91.218,91.142,2.69932044]
[1645885724476,53.43942658,91.218,91.143,2.87942626]
[1645885724877,0.92805554,91.217,91.143,2.87942626]
[1645885725477,16.4614,91.21,91.143,2.87942626]
[1645885725681,23.1326,91.209,91.142,23.9203]
[1645885726078,0.92805554,91.208,91.142,23.9203]
[1645885727481,16.4631,91.2,91.142,23.9203]
[1645885728079,16.4631,91.2,91.141,43.55585939]
[1645885728279,0.92805554,91.199,91.141,43.55585939]
[1645885728979,21.9604468,91.19,91.141,43.55585939]
[1645885729580,0.92805554,91.189,91.141,43.55585939]
[1645885735289,23.1326,91.209,91.141,43.55585939]
[1645885735688,23.1326,91.209,91.142,2.62430174]
[1645885736288,51.00112243,91.208,91.142,2.62430174]
[1645885737792,50.07306689,91.208,91.142,2.62430174]
[1645885739191,51.00112243,91.208,91.142,2.62430174]
[1645885739791,50.07306689,91.208,91.142,2.62430174]
[1645885739990,51.00112243,91.208,91.142,2.62430174]
[1645885740292,50.07306689,91.208,91.142,2.62430174]
[1645885741092,16.4631,91.2,91.141,43.55585939]
[1645885741293,16.4631,91.2,91.131,23.9028]
[1645885741494,110.0,91.199,91.111,2.46887078]
[1645885741692,4.19032582,91.198,91.097,2.33911201]
[1645885741893,65.9,91.193,91.097,2.33911201]
[1645885742093,1.37455276,91.183,91.096,22.7528]
[1645885742294,110.0,91.179,91.097,58.84743632]
[1645885742493,1.77467282,91.178,91.097,58.84743632]
[1645885742693,126.29588849,91.178,91.097,58.84743632]
[1645885742896,0.92805554,91.177,91.097,58.84743632]
[1645885743093,1.36356857,91.176,91.097,58.84743632]
[1645885743295,1.42164628,91.175,91.097,58.84743632]
[1645885743497,15.94286195,91.175,91.097,58.84743632]
[1645885743694,34.1752169,91.174,91.097,58.84743632]
[1645885743894,43.92395057,91.174,91.097,58.84743632]
[1645885744195,14.52121567,91.173,91.097,58.84743632]
[1645885744495,16.4732,91.15,91.097,58.84743632]
[1645885744695,25.0832,91.15,91.061,2.94672089]
[1645885744894,23.7097,91.149,91.062,23.8198]
[1645885745096,24.63775554,91.149,91.063,2.76019104]
[1645885745496,2.217,91.148,91.063,2.76019104]
[1645885745696,50.07306689,91.147,91.07,2.82798926]
[1645885746296,50.07306689,91.147,91.07,15.85]
[1645885746496,50.07306689,91.147,91.071,2.95780926]
[1645885747096,49.57306689,91.147,91.071,2.95780926]
[1645885748698,23.7097,91.149,91.071,2.95780926]
[1645885749397,23.7097,91.149,91.071,112.95780926]
[1645885749596,2.322,91.168,91.071,112.95780926]
[1645885749597,2.322,91.168,91.072,5.67304231]
[1645885749800,2.322,91.168,91.074,2.81716181]
[1645885750297,2.322,91.168,91.076,110.0]
[1645885750499,24.9516,91.167,91.091,45.33363706]
[1645885750698,24.9516,91.167,91.093,2.3581094]
[1645885752900,24.9516,91.167,91.092,24.2534]
[1645885753100,1.85611108,91.166,91.092,24.2534]
[1645885753501,24.9516,91.167,91.1,16.4667]
[1645885753702,22.8526,91.169,91.101,2.42199455]
[1645885754102,22.8526,91.169,91.101,6.81099455]
[1645885754803,22.8526,91.169,91.101,2.42199455]
[1645885755202,1.81873367,91.168,91.101,2.42199455]
[1645885757708,22.8526,91.169,91.101,2.42199455]
[1645885758209,16.4704,91.16,91.101,2.42199455]
[1645885761734,1.81873367,91.159,91.101,2.42199455]
[1645885763034,1.81873367,91.159,91.092,24.2534]
[1645885763236,1.81873367,91.159,91.093,2.61646735]
[1645885763640,24.40363367,91.159,91.093,2.61646735]
[1645885769042,22.5849,91.159,91.093,2.61646735]
[1645885769241,2.367,91.172,91.093,112.61646735]
[1645885769445,2.367,91.172,91.095,110.0]
[1645885769643,2.367,91.172,91.097,110.0]
[1645885769841,23.5742,91.183,91.097,110.0]
[1645885769842,23.5742,91.183,91.11,15.85]
[1645885770042,23.5742,91.183,91.111,68.14799568]
[1645885770343,23.5742,91.183,91.112,2.87334864]
[1645885771346,6.28527038,91.182,91.112,2.87334864]
[1645885771543,23.5742,91.183,91.112,2.87334864]
[1645885773547,21.21400123,91.182,91.112,2.87334864]
[1645885773746,65.9,91.181,91.111,43.15522519]
[1645885773950,1.6014707,91.18,91.111,43.15522519]
[1645885774150,65.9,91.177,91.111,43.15522519]
[1645885774548,65.9,91.175,91.111,43.15522519]
[1645885774753,36.51050841,91.176,91.111,43.15522519]
[1645885774948,21.21400123,91.174,91.111,43.15522519]
[1645885775149,23.07011231,91.174,91.111,43.15522519]
[1645885775348,21.21400123,91.174,91.111,43.15522519]
[1645885775548,1.85611108,91.173,91.111,43.15522519]
[1645885775949,21.21400123,91.172,91.111,43.15522519]
[1645885776555,1.85611108,91.171,91.111,43.15522519]
[1645885776749,16.4699,91.17,91.111,43.15522519]
[1645885777751,16.4699,91.17,91.112,2.38733899]
[1645885777951,1.01327818,91.176,91.112,2.38733899]
[1645885778151,16.4667,91.18,91.112,2.38733899]
[1645885779753,56.61628878,91.188,91.112,2.38733899]
[1645885780152,16.4648,91.2,91.12,16.4633]
[1645885780353,16.4648,91.2,91.121,2.44927062]
[1645885781155,42.4278722,91.196,91.121,2.44927062]
[1645885784358,16.4648,91.2,91.121,2.44927062]
[1645885785159,23.0133,91.21,91.13,16.4615]
[1645885785358,2.332,91.209,91.132,2.29005539]
[1645885785559,23.0133,91.21,91.132,2.29005539]
[1645885786159,23.0133,91.21,91.141,2.95739192]
[1645885788464,2.323,91.23,91.152,2.52080624]
[1645885788663,14.283229,91.241,91.162,3.04252331]
[1645885788862,22.5975,91.249,91.171,2.59846001]
[1645885789363,22.5975,91.249,91.171,112.59846001]
[1645885789562,22.5975,91.249,91.172,27.3020012]
[1645885789761,22.5975,91.249,91.173,2.63816452]
[1645885790661,22.5975,91.249,91.181,47.78660138]
[1645885790861,22.5975,91.249,91.181,44.76010143]
[1645885791063,22.5975,91.249,91.182,3.11672684]
[1645885791863,22.5975,91.249,91.191,2.61550469]
[1645885792768,22.5975,91.249,91.182,2.56346184]
[1645885793965,25.03880085,91.248,91.182,2.56346184]
[1645885794366,26.85753452,91.248,91.182,2.56346184]
[1645885794568,25.03880085,91.248,91.182,2.56346184]
[1645885795470,16.4559,91.24,91.182,2.56346184]
[1645885795668,40.92920565,91.239,91.182,2.56346184]
[1645885796869,16.4559,91.24,91.182,2.56346184]
[1645885799777,25.03880085,91.248,91.182,2.56346184]
[1645885799994,22.5975,91.249,91.182,2.56346184]
[1645885804003,25.03880085,91.248,91.182,2.56346184]
[1645885804200,40.90189366,91.248,91.182,2.56346184]
[1645885806000,25.03880085,91.248,91.182,2.56346184]
[1645885810002,22.5975,91.249,91.182,2.56346184]
[1645885813103,16.4542,91.25,91.182,2.56346184]
[1645885813303,2.325,91.26,91.183,24.2987]
[1645885813504,24.43213419,91.261,91.184,2.52280279]
[1645885815506,16.4526,91.26,91.184,2.52280279]
[1645885815904,24.43213419,91.259,91.184,2.52280279]
[1645885816103,22.8161,91.258,91.184,2.52280279]
[1645885816504,24.43213419,91.257,91.184,2.52280279]
[1645885817305,177.71393103,91.249,91.181,44.76010143]
[1645885817506,65.9,91.246,91.181,44.76010143]
[1645885817704,3.82334667,91.245,91.181,44.76010143]
[1645885817905,65.9,91.244,91.181,44.76010143]
[1645885818105,3.92970835,91.243,91.181,44.76010143]
[1645885818314,65.9,91.236,91.181,44.76010143]
[1645885818505,110.0,91.229,91.181,44.76010143]
[1645885818705,2.3,91.228,91.131,2.61923164]
[1645885819008,110.0,91.227,91.124,2.81610548]
[1645885819205,3.83127782,91.226,91.124,2.81610548]
[1645885819405,65.9,91.224,91.124,2.81610548]
[1645885819606,110.0,91.221,91.124,2.81610548]
[1645885819806,65.9,91.202,91.062,16.5365]
[1645885820007,110.0,91.187,91.081,22.9709]
[1645885820208,110.0,91.173,91.056,2.82662918]
[1645885820408,65.9,91.169,91.057,22.9709]
[1645885820608,17.63752295,91.166,91.059,51.41882729]
[1645885820809,2.287,91.165,91.059,51.41882729]
[1645885821008,16.4754,91.14,91.06,3.10230509]
[1645885821208,16.4754,91.14,91.061,2.54028586]
[1645885821410,25.57673367,91.159,91.061,2.54028586]
[1645885823213,25.57673367,91.159,91.061,110.0]
[1645885823214,23.758,91.159,91.061,110.0]
[1645885823414,23.758,91.159,91.062,2.39706392]
[1645885823615,16.4722,91.15,91.062,2.39706392]
[1645885825215,16.4722,91.15,91.07,16.471]
[1645885825416,16.4722,91.15,91.071,2.80012966]
[1645885825618,16.4722,91.15,91.073,2.25059184]
[1645885825817,16.4722,91.15,91.074,2.35097741]
[1645885826917,16.4742,91.14,91.073,36.49649933]
[1645885827120,1.361644,91.138,91.073,36.49649933]
[1645885827318,2.323,91.137,91.073,36.49649933]
[1645885827517,28.0971309,91.137,91.073,36.49649933]
[1645885827718,1.80366038,91.135,91.073,36.49649933]
[1645885827917,2.274,91.134,91.073,36.49649933]
[1645885828119,110.0,91.117,91.073,36.49649933]
[1645885828319,3.73284581,91.116,91.073,36.49649933]
[1645885828719,1.50784581,91.116,91.073,36.49649933]
[1645885828918,3.94473367,91.115,91.055,0.28398202]
[1645885829119,16.4813,91.11,91.055,0.28398202]
[1645885829321,1.40115339,91.108,91.055,0.28398202]
[1645885829520,2.028,91.107,91.055,0.28398202]
[1645885829722,3.88411108,91.107,91.055,0.28398202]
[1645885829923,139.65824198,91.107,91.055,0.28398202]
[1645885830123,1.58746765,91.106,91.055,0.28398202]
[1645885830320,42.70837174,91.104,91.055,0.28398202]
[1645885830520,16.4844,91.1,91.055,0.28398202]
[1645885830920,1.881,91.099,91.055,0.28398202]
[1645885831123,1.832,91.102,91.055,0.28398202]
[1645885831321,1.85611108,91.098,91.055,0.28398202]
[1645885831925,16.4848,91.09,91.052,0.005412]
[1645885832122,65.9,91.077,91.011,0.44324024]
[1645885832323,26.0494862,91.076,91.011,0.44324024]
[1645885832525,1.56765912,91.075,91.011,0.44324024]
[1645885832722,21.12729709,91.075,91.011,0.44324024]
[1645885832922,26.33623367,91.076,91.011,0.44324024]
[1645885832923,17.10222559,91.074,91.011,0.44324024]
[1645885833125,1.69935224,91.073,91.011,0.44324024]
[1645885833324,32.3445,91.07,91.011,0.44324024]
[1645885834227,54.9809,91.06,90.941,59.89627859]
[1645885834430,110.0,91.049,90.941,59.89627859]
[1645885834629,1.53241352,91.039,90.941,59.89627859]
[1645885835227,44.75117592,91.038,90.941,59.89627859]
[1645885835427,1.63792488,91.037,90.942,2.52021292]
[1645885836028,16.4988,91.02,90.942,2.52021292]
[1645885837733,16.4988,91.02,90.941,59.89627859]
[1645885837734,3.64798897,91.019,90.941,59.89627859]
[1645885837931,2.323,91.018,90.941,59.89627859]
[1645885838132,16.5034,91.0,90.941,59.89627859]
[1645885838431,23.5834,91.0,90.941,59.89627859]
[1645885839536,16.5034,91.0,90.941,59.89627859]
[1645885839733,18.8214,91.02,90.942,2.90976372]
[1645885839932,2.322,91.039,90.942,2.90976372]
[1645885840133,1.85611108,91.041,90.942,2.90976372]
[1645885840734,16.495,91.04,90.942,9.84976372]
[1645885840935,1.83513128,91.066,90.942,9.84976372]
[1645885840936,2.322,91.061,90.942,9.84976372]
[1645885841151,1.83513128,91.066,90.942,9.84976372]
[1645885841352,2.322,91.079,90.942,9.84976372]
[1645885841353,47.8346,91.079,90.943,2.74678921]
[1645885841551,47.8346,91.079,90.944,110.0]
[1645885841756,1.81873367,91.093,90.962,110.0]
[1645885841952,16.4848,91.09,90.99,16.4837]
[1645885842155,16.4848,91.09,90.991,52.83066103]
[1645885842353,16.4848,91.09,90.992,2.3424983]
[1645885842755,2.322,91.089,90.992,2.3424983]
[1645885843153,16.4848,91.09,90.992,2.3424983]
[1645885843358,16.4848,91.09,90.993,3.06716522]
[1645885845158,2.323,91.107,91.001,110.0]
[1645885845357,26.2624,91.123,91.011,112.74049659]